[Event "1st 4NCL International Open"]
[Site "Telford"]
[Date "2018.11.02"]
[Round "5"]
[White "Pert, Richard G"]
[Black "Roberson, Peter T"]
[Result "1/2-1/2"]
[ECO "A46"]
[WhiteElo "2408"]
[BlackElo "2396"]
[Annotator "NA"]
[PlyCount "48"]
[EventDate "2018.10.31"]
[EventType "swiss"]
[EventCountry "GBR"]
[SourceTitle "playchess.com"]
[Source "ChessBase"]
[SourceQuality "1"]
[TimeControl "5400+30"]

1. d4 {[%emt 0:00:36]} e6 {[%emt 0:00:00]} 2. Nf3 {[%emt 0:00:11]} Nf6 {[%emt 0:00:00]} 3. Bg5 {[%emt 0:00:45]} h6 {[%emt 0:00:18]} 4. Bh4 {[%emt 0:00:19]} d6 {[%emt 0:00:33]} 5. c3 {[%emt 0:02:22] A46: 1 d4 Nf6 2 Nf3 e6: Torre, London and Colle Systems} Nbd7 {[%emt 0:01:01]} 6. Nbd2 {[%emt 0:05:22]} g5 {[%emt 0:00:50]} 7. Bg3 {[%emt 0:00:06]} Nh5 {[%emt 0:00:05]} 8. e4 {[%emt 0:06:49]} Bg7 {[%emt 0:00:25]} 9. Bd3 {[%emt 0:01:40]} O-O {[%emt 0:05:22]} 10. Ng1 {[%emt 0:06:37]} Nxg3 {[%emt 0:01:50]} 11. hxg3 {[%emt 0:00:05]} c5 {[%emt 0:04:31]} 12. Ne2 {[%emt 0:03:22]} cxd4 {[%emt 0:16:06]} 13. Nxd4 {[%emt 0:02:59]} Ne5 {[%emt 0:04:33]} 14. Bc2 $146 {[%emt 0:01:38]} ({Predecessor:} 14. Be2 Nc6 {½-½ (37) Nijs,N (2298)-Smirin,I (2663) Oslo 2013}) 14... b5 {[%emt 0:04:36]} 15. N2f3 {[%emt 0:09:04]} Ng6 {[%emt 0:11:39]} 16. O-O {[%emt 0:07:50]} Qb6 {[%emt 0:04:14]} 17. a3 {[%emt 0:02:17]} Bd7 {[%emt 0:01:40]} 18. Qd2 {[%emt 0:14:41]} a5 {[%emt 0:05:17]} 19. Rad1 {[%emt 0:04:57]} Rfc8 {[%emt 0:01:32]} 20. Bb3 {[%emt 0:02:10]} Rab8 {[%emt 0:15:37]} 21. Nc2 {[%emt 0:00:46]} Bc6 {[%emt 0:01:15]} 22. Rfe1 {[%emt 0:01:13]} Rd8 $11 {[%emt 0:05:28]} 23. Qe2 {[%emt 0:02:48]} Bb7 {[%emt 0:02:24]} 24. Rd2 {[%emt 0:04:51]} Ba6 {[%emt 0:04:32]} 1/2-1/2

[Event "1st 4NCL International Open"]
[Site "Telford"]
[Date "2018.11.02"]
[Round "5"]
[White "Gourlay, Iain"]
[Black "Hill, Alistair"]
[Result "1/2-1/2"]
[ECO "A34"]
[WhiteElo "2358"]
[BlackElo "2203"]
[Annotator "NA"]
[PlyCount "47"]
[EventDate "2018.10.31"]
[EventType "swiss"]
[EventCountry "GBR"]
[SourceTitle "playchess.com"]
[Source "ChessBase"]
[SourceQuality "1"]
[TimeControl "5400+30"]

1. c4 {[%emt 0:00:50]} Nf6 {[%emt 0:00:00]} 2. g3 {[%emt 0:00:22]} c5 {[%emt 0:00:00]} 3. Bg2 {[%emt 0:00:19]} d5 {[%emt 0:00:00]} 4. cxd5 {[%emt 0:00:19]} Nxd5 {[%emt 0:00:00]} 5. Nc3 {[%emt 0:00:39]} Nc7 {[%emt 0:00:00]} 6. Nf3 {[%emt 0:02:54]} Nc6 {[%emt 0:00:00]} 7. a3 {[%emt 0:00:43]} g6 {[%emt 0:06:07]} 8. h4 {[%emt 0:01:56] A34: Symmetrical English: 2 Nc3, lines with ...d5} Bg4 {[%emt 0:11:32]} 9. Qa4 $146 {[%emt 0:15:45]} ({Predecessor:} 9. d3 Bg7 10. Be3 Nd4 11. Bxd4 cxd4 12. Ne4 O-O 13. O-O b6 14. Rc1 Qd7 15. Nh2 Bf5 {½-½ (38) Ding,L (2777)-Vidit,S (2693) Tbilisi 2017}) 9... Bd7 {[%emt 0:00:14]} 10. h5 {[%emt 0:01:41]} Nd4 {[%emt 0:05:32]} 11. Qd1 {[%emt 0:01:45]} Bg7 {[%emt 0:22:37]} 12. h6 {[%emt 0:07:54]} Bf6 {[%emt 0:00:31]} 13. e3 {[%emt 0:04:45]} Nde6 {[%emt 0:04:26]} 14. Ne4 {[%emt 0:02:46]} Bb5 {[%emt 0:11:15]} 15. d4 {[%emt 0:07:09]} cxd4 {[%emt 0:01:09]} 16. Nxf6+ {[%emt 0:00:49]} exf6 {[%emt 0:00:03]} 17. Nxd4 {[%emt 0:00:54]} Nxd4 {[%emt 0:00:23]} 18. Qxd4 {[%emt 0:01:09]} Qxd4 {[%emt 0:08:35]} 19. exd4 {[%emt 0:00:07]} O-O-O {[%emt 0:00:05]} 20. Be3 {[%emt 0:01:35]} Nd5 {[%emt 0:00:04]} 21. Rc1+ {[%emt 0:03:06]} Kb8 {[%emt 0:00:04]} 22. Kd2 {[%emt 0:07:58]} Bc6 {[%emt 0:05:56]} 23. Bxd5 {[%emt 0:00:28]} Rxd5 $11 {[%emt 0:00:44]} 24. Rhe1 {[%emt 0:02:46]} 1/2-1/2

[Event "1st 4NCL International Open"]
[Site "Telford"]
[Date "2018.11.02"]
[Round "5"]
[White "Kulkarni, Rakesh"]
[Black "Gibson, Christopher A"]
[Result "1-0"]
[ECO "B22"]
[WhiteElo "2297"]
[BlackElo "1924"]
[Annotator "NA"]
[PlyCount "79"]
[EventDate "2018.10.31"]
[EventType "swiss"]
[EventCountry "GBR"]
[SourceTitle "playchess.com"]
[Source "ChessBase"]
[SourceQuality "1"]
[TimeControl "5400+30"]

1. e4 {[%emt 0:00:00]} c5 {[%emt 0:00:00]} 2. c3 {[%emt 0:00:00]} Nf6 {[%emt 0:00:00]} 3. e5 {[%emt 0:00:00]} Nd5 {[%emt 0:00:00]} 4. d4 {[%emt 0:00:00]} cxd4 {[%emt 0:00:00]} 5. Nf3 {[%emt 0:00:00]} e6 {[%emt 0:00:04]} 6. cxd4 {[%emt 0:00:00]} d6 {[%emt 0:00:05]} 7. Bc4 {[%emt 0:00:00]} Nc6 {[%emt 0:04:26]} 8. O-O {[%emt 0:00:08]} Be7 {[%emt 0:00:14]} 9. Qe2 {[%emt 0:00:08]} O-O {[%emt 0:01:22]} 10. Nc3 {[%emt 0:00:04]} Nxc3 {[%emt 0:00:37]} 11. bxc3 {[%emt 0:00:04]} dxe5 {[%emt 0:00:41]} 12. dxe5 {[%emt 0:00:03]} Qa5 {[%emt 0:01:14]} 13. Bd2 {[%emt 0:00:04]} Bd7 {[%emt 0:08:40] B22: Sicilian: 2 c3} 14. Rfe1 {[%emt 0:00:30]} Rfd8 {[%emt 0:05:17]} 15. Bd3 {[%emt 0:00:19]} (15. Bb3 Be8 16. h4 Qa6 17. Qxa6 bxa6 18. Bc4 a5 19. h5 h6 20. a4 Bc5 21. Be3 Bxe3 22. Rxe3 {½-½ (44) Vajda,L (2558)-Deepan Chakkravarthy,J (2530) Arad 2018}) 15... Be8 {[%emt 0:18:59]} 16. Qe4 {[%emt 0:01:33]} g6 {[%emt 0:02:37]} 17. Bc2 {[%emt 0:00:06]} Qd5 {[%emt 0:07:57]} 18. Qg4 $146 {[%emt 0:00:32]} ({Predecessor:} 18. Qf4 b5 19. h4 Rac8 20. h5 Bf8 21. hxg6 hxg6 22. Qh4 Bg7 23. Bg5 Rd7 24. Bf6 Qc5 25. Ng5 Nxe5 26. Qh7+ {1-0 (26) Jeric,S (2273)-Mihevc,I (2173) Slovenia 2014}) 18... Rd7 {[%emt 0:06:18]} 19. h4 {[%emt 0:04:02]} h5 {[%emt 0:02:21]} 20. Qf4 {[%emt 0:01:38]} Rad8 $11 {[%emt 0:00:15]} 21. g4 {[%emt 0:02:16]} hxg4 {[%emt 0:15:41]} 22. Qxg4 {[%emt 0:00:20]} f5 {[%emt 0:01:00]} 23. exf6 {[%emt 0:02:37]} Bxf6 {[%emt 0:00:11]} 24. Bb3 {[%emt 0:00:41]} Qh5 {[%emt 0:02:34]} 25. Bxe6+ {[%emt 0:00:49]} Kg7 {[%emt 0:00:52]} 26. Bxd7 {[%emt 0:00:24]} Bxd7 {[%emt 0:00:09]} 27. Qxh5 {[%emt 0:00:16]} gxh5 {[%emt 0:00:03]} 28. Bg5 {[%emt 0:00:19]} Bg4 {[%emt 0:02:04]} 29. Bxf6+ {[%emt 0:00:06]} Kxf6 {[%emt 0:00:04]} 30. Ng5 {[%emt 0:00:05]} Ne5 {[%emt 0:01:07]} 31. Rab1 {[%emt 0:00:25]} b6 {[%emt 0:01:40]} 32. Re3 {[%emt 0:02:07]} Ng6 {[%emt 0:02:23]} 33. Nf3 {[%emt 0:01:55]} Rd5 {[%emt 0:03:10]} 34. Kh2 {[%emt 0:00:56]} Ra5 {[%emt 0:03:43]} 35. Rb2 {[%emt 0:00:35]} Nf4 {[%emt 0:00:49]} 36. Rd2 {[%emt 0:02:24]} Nd5 {[%emt 0:01:46]} 37. Red3 {[%emt 0:00:09]} Nf4 {[%emt 0:00:30]} 38. Rd6+ {[%emt 0:01:46]} Ke7 {[%emt 0:00:18]} 39. Ng5 {[%emt 0:00:33]} Ne2 {[%emt 0:02:57]} 40. f3 {[%emt 0:05:02]} 1-0

[Event "1st 4NCL International Open"]
[Site "Telford"]
[Date "2018.11.02"]
[Round "5"]
[White "Britton, Richard L"]
[Black "Macklin, Paul"]
[Result "1/2-1/2"]
[ECO "B08"]
[WhiteElo "2204"]
[BlackElo "2361"]
[Annotator "NA"]
[PlyCount "64"]
[EventDate "2018.10.31"]
[EventType "swiss"]
[EventCountry "GBR"]
[SourceTitle "playchess.com"]
[Source "ChessBase"]
[SourceQuality "1"]
[TimeControl "5400+30"]

1. e4 {[%emt 0:00:00]} g6 {[%emt 0:00:00]} 2. d4 {[%emt 0:00:00]} Bg7 {[%emt 0:00:00]} 3. Nc3 {[%emt 0:01:04]} c6 {[%emt 0:00:07]} 4. Nf3 {[%emt 0:03:59]} d6 {[%emt 0:00:15]} 5. Be3 {[%emt 0:00:35]} Nf6 {[%emt 0:00:26]} 6. Qd2 {[%emt 0:06:13]} O-O {[%emt 0:00:51]} 7. Bh6 {[%emt 0:01:43]} Bg4 {[%emt 0:02:35]} 8. Be2 {[%emt 0:03:35]} Bxf3 {[%emt 0:03:22]} 9. Bxf3 {[%emt 0:01:01]} e5 {[%emt 0:00:10]} 10. Bxg7 {[%emt 0:01:03]} Kxg7 {[%emt 0:00:05]} 11. O-O-O {[%emt 0:00:19] B08: Pirc Defence: Classical System} Qa5 $146 {[%emt 0:08:25]} ({Predecessor:} 11... Nbd7 12. g4 Nb6 13. g5 Nfd7 14. Be2 Qe7 15. h4 Rad8 16. h5 d5 17. exd5 cxd5 18. dxe5 Nxe5 19. Qd4 Kg8 {0-1 (37) Gal,J (2347)-Molnar,B (2354) Hungary 2005}) 12. g4 {[%emt 0:04:22]} b5 {[%emt 0:03:27]} 13. dxe5 {[%emt 0:11:18]} dxe5 {[%emt 0:00:07]} 14. h4 {[%emt 0:00:06]} b4 {[%emt 0:05:25]} 15. Nb1 {[%emt 0:00:06]} Na6 $1 {[%emt 0:02:42]} 16. g5 {[%emt 0:21:49]} Ng8 {[%emt 0:06:36]} 17. Be2 {[%emt 0:00:39]} Nc5 {[%emt 0:08:26]} 18. h5 {[%emt 0:07:55]} Ne6 {[%emt 0:07:49]} 19. hxg6 {[%emt 0:06:37]} hxg6 {[%emt 0:00:52]} 20. Qe3 {[%emt 0:04:25]} Nf4 {[%emt 0:00:25]} 21. Bc4 {[%emt 0:01:16]} Rfd8 {[%emt 0:01:09] [#]} 22. Nd2 $1 {[%emt 0:15:55]} Ne7 {[%emt 0:06:46]} 23. Nb3 {[%emt 0:01:34]} Qb6 {[%emt 0:00:29]} 24. Nc5 {[%emt 0:02:05]} Rxd1+ {[%emt 0:02:44]} 25. Kxd1 $11 {[%emt 0:00:14]} (25. Rxd1 $5 {[%cal Rd1d7]} Rh8 26. Na6 $16) 25... Rd8+ {[%emt 0:00:51]} 26. Nd3 {[%emt 0:01:23]} Qd4 {[%emt 0:06:55]} 27. Qxd4 {[%emt 0:03:43]} Rxd4 {[%emt 0:00:22]} 28. b3 {[%emt 0:00:04]} Rxe4 {[%emt 0:05:47]} 29. Nxb4 {[%emt 0:00:02]} a5 {[%emt 0:01:30]} 30. Nd3 {[%emt 0:00:47]} Nxd3 {[%emt 0:00:17]} 31. Bxd3 {[%emt 0:00:04]} Rg4 {[%emt 0:00:06]} 32. Re1 {[%emt 0:00:06]} f6 {[%emt 0:02:08]} 1/2-1/2

[Event "1st 4NCL International Open"]
[Site "Telford"]
[Date "2018.11.02"]
[Round "5"]
[White "Munshi, Aditya"]
[Black "Rahul Srivatshav P"]
[Result "0-1"]
[ECO "B06"]
[WhiteElo "2117"]
[BlackElo "2395"]
[Annotator "NA"]
[PlyCount "70"]
[EventDate "2018.10.31"]
[EventType "swiss"]
[EventCountry "GBR"]
[SourceTitle "playchess.com"]
[Source "ChessBase"]
[SourceQuality "1"]
[TimeControl "5400+30"]

1. e4 {[%emt 0:00:00]} g6 {[%emt 0:00:00]} 2. d4 {[%emt 0:00:18]} Bg7 {[%emt 0:00:00]} 3. Nf3 {[%emt 0:00:30]} d6 {[%emt 0:00:04]} 4. Bc4 {[%emt 0:00:20]} e6 {[%emt 0:01:10]} 5. Bb3 {[%emt 0:01:00]} Ne7 {[%emt 0:00:41] B06: Modern Defence} 6. c3 {[%emt 0:00:50]} a6 {[%emt 0:01:05]} 7. O-O {[%emt 0:02:14]} b5 {[%emt 0:02:18]} 8. Re1 {[%emt 0:02:33]} Bb7 {[%emt 0:00:18]} 9. Nbd2 {[%emt 0:00:25]} Nd7 {[%emt 0:02:39]} 10. Nf1 {[%emt 0:00:50]} O-O {[%emt 0:12:27]} 11. Ng3 {[%emt 0:02:08]} (11. h4 h6 12. Ng3 c5 13. Bf4 cxd4 14. cxd4 Nb6 15. Rc1 Qd7 16. Qd2 Kh7 17. Qa5 Qd8 18. Qa3 d5 19. Bc7 {1-0 (19) Dubov,D (2703)-Sviridov,V (2551) Sochi 2018}) 11... c5 {[%emt 0:04:39]} 12. Be3 {[%emt 0:03:53]} Qc7 $146 {[%emt 0:07:41]} ({Predecessor:} 12... e5 13. dxe5 dxe5 {1-0 (52) Tari,A (2593)-Rocha,S (2370) Katowice 2017}) 13. Qd2 {[%emt 0:05:15]} a5 {[%emt 0:08:37]} 14. Bh6 {[%emt 0:12:45]} a4 {[%emt 0:03:26]} 15. Bxg7 {[%emt 0:08:34]} Kxg7 {[%emt 0:00:13]} 16. Bc2 {[%emt 0:03:39]} h6 {[%emt 0:09:58]} 17. h4 {[%emt 0:07:53]} Nb6 {[%emt 0:01:39]} 18. h5 {[%emt 0:25:07]} Nc4 {[%emt 0:10:23]} 19. Qc1 $14 {[%emt 0:01:13]} cxd4 {[%emt 0:02:27]} 20. hxg6 {[%emt 0:04:05]} fxg6 {[%emt 0:04:49]} 21. Nxd4 {[%emt 0:07:15]} Bc8 {[%emt 0:00:05]} 22. b3 {[%emt 0:03:07]} Ne5 {[%emt 0:06:14]} 23. Nxb5 {[%emt 0:05:39]} Qc5 {[%emt 0:00:01]} 24. Nd4 {[%emt 0:00:14]} Ng4 {[%emt 0:00:07]} 25. f3 {[%emt 0:02:11]} e5 {[%emt 0:00:59]} 26. fxg4 {[%emt 0:00:10]} Nc6 {[%emt 0:02:11]} 27. b4 {[%emt 0:00:47]} Qb6 {[%emt 0:00:06]} 28. g5 {[%emt 0:00:31]} exd4 {[%emt 0:00:26]} 29. gxh6+ {[%emt 0:00:04]} Kh7 {[%emt 0:00:04]} 30. Qg5 {[%emt 0:00:56]} d3+ {[%emt 0:01:19]} 31. Kh2 {[%emt 0:00:32]} dxc2 {[%emt 0:00:41]} 32. Rf1 {[%emt 0:00:14]} Qd8 {[%emt 0:01:00]} 33. Qd5 {[%emt 0:00:24]} Ba6 {[%emt 0:01:52]} 34. Rf7+ {[%emt 0:00:33]} Rxf7 {[%emt 0:00:32]} 35. Qxf7+ {[%emt 0:00:01]} Kxh6 {[%emt 0:00:06]} 0-1

[Event "1st 4NCL International Open"]
[Site "Telford"]
[Date "2018.11.02"]
[Round "5"]
[White "White, Stuart A"]
[Black "Guha, Chirag"]
[Result "1/2-1/2"]
[ECO "D35"]
[WhiteElo "2113"]
[BlackElo "1887"]
[Annotator "NA"]
[PlyCount "154"]
[EventDate "2018.10.31"]
[EventType "swiss"]
[EventCountry "GBR"]
[SourceTitle "playchess.com"]
[Source "ChessBase"]
[SourceQuality "1"]
[TimeControl "5400+30"]

1. d4 {[%emt 0:00:00]} d5 {[%emt 0:00:00]} 2. c4 {[%emt 0:00:00]} e6 {[%emt 0:00:00]} 3. Nc3 {[%emt 0:00:00]} Nf6 {[%emt 0:00:00]} 4. cxd5 {[%emt 0:00:00]} exd5 {[%emt 0:00:00]} 5. Bg5 {[%emt 0:00:00]} Be7 {[%emt 0:00:00]} 6. e3 {[%emt 0:00:11]} c6 {[%emt 0:00:04]} 7. Bd3 {[%emt 0:00:06]} Nbd7 {[%emt 0:00:07]} 8. Nge2 {[%emt 0:00:09]} Nh5 {[%emt 0:01:01]} 9. Bxe7 {[%emt 0:00:44]} Qxe7 {[%emt 0:00:07]} 10. Qd2 {[%emt 0:02:28] D35: Damengambit (Abtauschvariante)} (10. g4 Nhf6 11. Ng3 Nb6 12. g5 Ng8 13. h4 Be6 14. Nh5 g6 15. Ng7+ Kd7 16. Nxe6 Qxe6 17. a4 a5 18. h5 Ne7 19. Qf3 {0-1 (49) Wojtaszek,R (2745)-Onischuk,A (2682) Tbilisi 2017}) 10... g6 {[%emt 0:01:54]} 11. O-O {[%emt 0:03:38]} Ng7 $146 {[%emt 0:01:53]} ({Vorgänger:} 11... O-O 12. f3 Nb6 13. Rae1 Be6 14. b3 f5 15. a4 Rae8 16. Bb1 Qb4 17. Ba2 Nd7 {1-0 (36) Salinas Herrera,P (2486)-Damaso,R (2440) Batumi 2018}) 12. f3 {[%emt 0:02:39]} Nb6 {[%emt 0:01:11]} 13. Rad1 {[%emt 0:05:05]} O-O {[%emt 0:00:54]} 14. Kh1 {[%emt 0:07:58]} Be6 {[%emt 0:02:30]} 15. Nf4 {[%emt 0:05:03]} c5 {[%emt 0:05:53]} 16. dxc5 {[%emt 0:18:13]} Qxc5 {[%emt 0:00:42]} 17. Nce2 {[%emt 0:00:46]} Rfe8 {[%emt 0:16:06]} 18. Nd4 {[%emt 0:03:11]} Nc4 {[%emt 0:16:52]} 19. Qf2 {[%emt 0:07:31]} Rac8 {[%emt 0:10:54]} 20. Rfe1 {[%emt 0:04:13]} a6 {[%emt 0:02:16]} 21. b3 {[%emt 0:07:54]} Ne5 {[%emt 0:03:15]} 22. Qd2 {[%emt 0:02:16]} Qc3 {[%emt 0:15:40]} 23. Qxc3 {[%emt 0:10:49]} Rxc3 {[%emt 0:00:06]} 24. Nde2 {[%emt 0:00:28]} Rc5 {[%emt 0:02:17]} 25. Bb1 {[%emt 0:01:09]} Rec8 {[%emt 0:01:15]} 26. Kg1 {[%emt 0:01:23]} g5 {[%emt 0:01:36]} 27. Nd3 {[%emt 0:02:38]} Nxd3 {[%emt 0:00:07]} 28. Bxd3 {[%emt 0:00:30]} Nf5 {[%emt 0:07:05]} 29. Bxf5 {[%emt 0:00:49]} Bxf5 {[%emt 0:00:08]} 30. Nd4 {[%emt 0:00:10]} Bg6 {[%emt 0:02:10]} 31. Kf2 {[%emt 0:00:19]} Kf8 {[%emt 0:01:21]} 32. Rd2 {[%emt 0:00:37]} h6 {[%emt 0:01:27]} 33. Red1 {[%emt 0:00:33]} Ke7 {[%emt 0:02:59]} 34. Rh1 {[%emt 0:00:13]} Kd6 {[%emt 0:03:44]} 35. h4 {[%emt 0:00:45]} Rc1 {[%emt 0:00:43]} 36. Rdd1 {[%emt 0:06:27]} R1c3 {[%emt 0:00:40]} 37. hxg5 {[%emt 0:01:21]} hxg5 {[%emt 0:00:03]} 38. Rd2 {[%emt 0:01:05]} Rc1 {[%emt 0:00:30]} 39. Rxc1 {[%emt 0:01:04]} Rxc1 {[%emt 0:00:04]} 40. Ne2 {[%emt 0:01:56]} Rc5 {[%emt 0:00:35]} 41. b4 {[%emt 0:03:01]} Rc4 {[%emt 0:00:51]} 42. a3 {[%emt 0:00:34]} Ke5 {[%emt 0:00:23]} 43. g3 {[%emt 0:00:40]} Bf5 {[%emt 0:01:15]} 44. Nd4 {[%emt 0:01:37]} Bg6 {[%emt 0:00:03]} 45. Rb2 {[%emt 0:00:25]} b5 {[%emt 0:01:29]} 46. Rb3 {[%emt 0:00:56]} Bh7 {[%emt 0:00:04]} 47. Ke2 {[%emt 0:00:34]} Bg6 {[%emt 0:00:33]} 48. Kd2 {[%emt 0:00:07]} Bh7 {[%emt 0:00:27]} 49. Rb2 {[%emt 0:00:08]} Bg6 {[%emt 0:00:24]} 50. Ra2 {[%emt 0:00:20]} Bh7 {[%emt 0:00:25]} 51. Ra1 {[%emt 0:00:00]} Bg6 {[%emt 0:00:08]} 52. Rh1 {[%emt 0:00:00]} Rc8 {[%emt 0:00:03]} 53. Rh6 {[%emt 0:00:36]} Kf6 {[%emt 0:00:25]} 54. f4 {[%emt 0:01:02]} gxf4 {[%emt 0:00:08]} 55. gxf4 {[%emt 0:00:08]} Kg7 {[%emt 0:00:27]} 56. Rh2 {[%emt 0:00:06]} Be4 {[%emt 0:00:37]} 57. Rh5 {[%emt 0:00:06]} Kf6 {[%emt 0:00:53]} 58. Rh6+ {[%emt 0:00:08]} Bg6 {[%emt 0:01:01]} 59. Rh1 {[%emt 0:01:23]} Be4 {[%emt 0:00:25]} 60. Rc1 {[%emt 0:00:26]} Rc4 {[%emt 0:00:47]} 61. Rxc4 {[%emt 0:00:47]} dxc4 {[%emt 0:00:30]} 62. Kc3 {[%emt 0:00:40]} Ke7 {[%emt 0:00:59]} 63. Ne2 {[%emt 0:00:10]} f5 {[%emt 0:00:20]} 64. Kd4 {[%emt 0:00:12]} Kd6 {[%emt 0:00:22]} 65. Ng3 {[%emt 0:00:31]} Bc2 {[%emt 0:00:24]} 66. Nh5 {[%emt 0:00:18]} Ke6 {[%emt 0:00:49]} 67. Ng3 {[%emt 0:01:13]} Kd6 {[%emt 0:00:12]} 68. Ne2 {[%emt 0:00:12]} Be4 {[%emt 0:00:28]} 69. Nc3 {[%emt 0:00:19]} Bc6 {[%emt 0:00:45]} 70. Nd1 {[%emt 0:01:51]} Be4 {[%emt 0:00:29]} 71. Nf2 {[%emt 0:00:26]} Bc2 {[%emt 0:00:39]} 72. Nh3 {[%emt 0:00:14]} Bb1 {[%emt 0:00:15]} 73. Ng5 {[%emt 0:00:04]} Ke7 {[%emt 0:00:23]} 74. Nf3 {[%emt 0:00:12]} Kd6 {[%emt 0:00:17]} 75. Ne5 {[%emt 0:00:33]} Be4 {[%emt 0:00:35]} 76. Nf7+ {[%emt 0:01:15]} Ke7 $11 {[%emt 0:00:21]} 77. Ng5 {[%emt 0:00:25]} Bb1 {[%emt 0:00:28]} 1/2-1/2

[Event "1st 4NCL International Open"]
[Site "Telford"]
[Date "2018.11.02"]
[Round "5"]
[White "Clark, Robert G"]
[Black "Ahluwalia, Amardip"]
[Result "1/2-1/2"]
[ECO "C78"]
[WhiteElo "2025"]
[BlackElo "2085"]
[Annotator "NA"]
[PlyCount "59"]
[EventDate "2018.10.31"]
[EventType "swiss"]
[EventCountry "GBR"]
[SourceTitle "playchess.com"]
[Source "ChessBase"]
[SourceQuality "1"]
[TimeControl "5400+30"]

1. e4 {[%emt 0:00:00]} e5 {[%emt 0:00:00]} 2. Nf3 {[%emt 0:00:00]} Nc6 {[%emt 0:00:14]} 3. Bb5 {[%emt 0:00:00]} a6 {[%emt 0:00:41]} 4. Ba4 {[%emt 0:00:05]} Nf6 {[%emt 0:00:33]} 5. O-O {[%emt 0:00:15]} b5 {[%emt 0:00:33]} 6. Bb3 {[%emt 0:00:08]} Bc5 {[%emt 0:00:15]} 7. c3 {[%emt 0:10:25]} d6 {[%emt 0:00:36]} 8. h3 {[%emt 0:03:24]} O-O {[%emt 0:00:37]} 9. Re1 {[%emt 0:04:25]} h6 {[%emt 0:01:38]} 10. d4 {[%emt 0:03:19]} Bb6 {[%emt 0:00:07]} 11. Be3 {[%emt 0:02:46]} Rb8 {[%emt 0:00:40]} 12. Nbd2 {[%emt 0:02:24]} Re8 {[%emt 0:01:51]} 13. a4 {[%emt 0:08:36]} Bd7 {[%emt 0:06:36]} 14. axb5 {[%emt 0:03:01]} axb5 {[%emt 0:00:07]} 15. Bc2 {[%emt 0:05:33]} exd4 {[%emt 0:07:31]} 16. cxd4 {[%emt 0:06:15]} Nb4 {[%emt 0:01:01]} 17. Bb1 {[%emt 0:01:53]} c5 {[%emt 0:01:35]} 18. Qb3 {[%emt 0:06:15]} Nc6 {[%emt 0:06:12]} 19. d5 {[%emt 0:02:58]} Ne7 {[%emt 0:02:27]} 20. Bf4 {[%emt 0:01:18]} Bc7 {[%emt 0:00:58]} 21. Bh2 {[%emt 0:03:34]} Ng6 {[%emt 0:01:57]} 22. Qd3 {[%emt 0:02:19]} Bc8 {[%emt 0:06:09]} 23. b4 {[%emt 0:01:41]} c4 {[%emt 0:03:44]} 24. Qc3 {[%emt 0:02:54]} Bb7 {[%emt 0:02:27]} 25. Bc2 {[%emt 0:01:51]} Bc8 {[%emt 0:04:42]} 26. Nd4 {[%emt 0:01:27]} Bd7 {[%emt 0:00:21]} 27. Kh1 {[%emt 0:02:30]} Nh5 {[%emt 0:04:31]} 28. Qf3 {[%emt 0:04:50]} Nf6 {[%emt 0:00:53]} 29. Qc3 {[%emt 0:00:46]} Nh5 {[%emt 0:00:07]} 30. Qf3 {[%emt 0:00:06]} 1/2-1/2

[Event "1st 4NCL International Open"]
[Site "Telford"]
[Date "2018.11.02"]
[Round "5"]
[White "Zabrocki, Philip"]
[Black "Wall, Tim P"]
[Result "0-1"]
[ECO "B12"]
[WhiteElo "1952"]
[BlackElo "2253"]
[Annotator "NA"]
[PlyCount "50"]
[EventDate "2018.10.31"]
[EventType "swiss"]
[EventCountry "GBR"]
[SourceTitle "playchess.com"]
[Source "ChessBase"]
[SourceQuality "1"]
[TimeControl "5400+30"]

1. e4 {[%emt 0:00:00]} c6 {[%emt 0:06:03]} 2. d4 {[%emt 0:00:00]} d5 {[%emt 0:00:13]} 3. e5 {[%emt 0:02:46]} Bf5 {[%emt 0:00:29]} 4. Ne2 {[%emt 0:03:59]} e6 {[%emt 0:02:25]} 5. Ng3 {[%emt 0:00:36]} Ne7 {[%emt 0:01:13]} 6. Nxf5 {[%emt 0:04:30]} Nxf5 {[%emt 0:00:10]} 7. c3 {[%emt 0:01:34]} c5 {[%emt 0:02:23]} 8. Bd3 {[%emt 0:04:05]} Nc6 {[%emt 0:01:38]} 9. Bxf5 {[%emt 0:00:18]} exf5 {[%emt 0:00:12]} 10. Na3 {[%emt 0:04:28]} cxd4 {[%emt 0:02:48]} 11. cxd4 {[%emt 0:01:03]} Bxa3 {[%emt 0:00:10]} 12. bxa3 {[%emt 0:00:12]} Qa5+ {[%emt 0:00:22]} 13. Bd2 {[%emt 0:01:50]} Qxa3 {[%emt 0:04:14]} 14. O-O {[%emt 0:01:15]} Qd3 {[%emt 0:02:35]} 15. Rb1 {[%emt 0:02:45]} O-O {[%emt 0:04:52]} 16. Rxb7 {[%emt 0:02:03]} Qxd4 {[%emt 0:00:32]} 17. e6 {[%emt 0:00:41]} fxe6 {[%emt 0:01:34]} 18. Qc1 $17 {[%emt 0:01:21]} Qc4 {[%emt 0:04:06]} 19. Qb2 {[%emt 0:03:24]} d4 {[%emt 0:09:05]} 20. Rc1 {[%emt 0:01:09]} Qd5 {[%emt 0:00:17]} 21. Rc7 {[%emt 0:00:36]} Ne5 {[%emt 0:07:03]} 22. R1c5 {[%emt 0:07:10]} Rab8 {[%emt 0:05:42]} 23. Qc2 {[%emt 0:04:21]} d3 {[%emt 0:04:05]} 24. Qc3 {[%emt 0:01:10]} Rb1+ {[%emt 0:00:37]} 25. Bc1 {[%emt 0:00:01]} d2 {[%emt 0:01:14]} 0-1